lending/lending_fUSD_20251111
["ID","MTS","AMOUNT","RATE_DAILY","PERIOD"]
[393626828,1762864261247,-454.21627899,0.00039722,60]
[393626829,1762864261257,-307.91528284,0.00039722,60]
[393626830,1762864261267,-163.86032762,0.00039722,60]
[393626831,1762864261276,-500.0,0.00039722,60]
[393626832,1762864261287,-452.65981266,0.00039722,60]
[393626833,1762864261300,-150.0,0.00039722,60]
[393626834,1762864261315,-500.0,0.00039722,60]
[393626835,1762864261325,-207.80096112,0.00039722,60]
[393626836,1762864261334,-500.0,0.00039722,60]
[393626837,1762864261343,-159.37165432,0.00039722,60]
[393626838,1762864261353,-500.0,0.00039722,60]
[393626839,1762864261363,-500.0,0.00039722,23]
[393626840,1762864261372,-150.0,0.00039722,7]
[393626841,1762864261382,-500.0,0.00039726,5]
[393626842,1762864261392,-205.930075,0.00039726,21]
[393626843,1762864261401,-205.930075,0.00039726,21]
[393626844,1762864261410,-205.930075,0.00039726,21]
[393626845,1762864261419,-205.930075,0.00039726,21]
[393626846,1762864261430,-1000.0,0.00039727,7]
[393626847,1762864261440,-168.0,0.00039728,2]
[393626848,1762864261449,-1000.0,0.00039731,7]
[393626849,1762864261459,-150.0,0.00039735,7]
[393626850,1762864261468,-150.0,0.00039735,7]
[393626851,1762864261477,-500.0,0.00039735,7]
[393626852,1762864261487,-500.0,0.00039735,2]
[393626853,1762864261496,-500.0,0.00039735,7]
[393626854,1762864261507,-152.81423976,0.00039735,7]
[393626855,1762864261516,-500.0,0.00039735,2]
[393626856,1762864261527,-500.0,0.00039735,7]
[393626857,1762864261537,-1000.0,0.00039745,7]
[393626858,1762864261548,-375.90278445,0.00039751,2]
[393626859,1762864261557,-600.0,0.00039752,15]
[393626860,1762864261566,-600.0,0.00039752,15]
[393626861,1762864261575,-618.18658635,0.00039752,15]
[393626862,1762864261584,-600.0,0.00039752,15]
[393626863,1762864261594,-600.0,0.00039752,15]
[393626864,1762864261603,-600.0,0.00039752,15]
[393626865,1762864261613,-600.0,0.00039752,15]
[393626866,1762864261623,-600.0,0.00039752,15]
[393626867,1762864261633,-600.0,0.00039752,15]
[393626868,1762864261648,-600.0,0.00039752,15]
[393626869,1762864261658,-600.0,0.00039752,15]
[393626870,1762864261667,-600.0,0.00039752,15]
[393626871,1762864261676,-600.0,0.00039752,15]
[393626872,1762864261685,-3109.0,0.00039752,120]
[393626873,1762864261694,-724.49,0.00039762,120]
[393626874,1762864261705,-1000.0,0.00039765,7]
[393626875,1762864261714,-150.0,0.00039766,7]
[393626876,1762864261724,-500.0,0.0003977,2]
[393626877,1762864261733,-500.0,0.0003977,2]
[393626878,1762864261742,-1000.0,0.0003977,2]
[393626879,1762864261751,-1000.0,0.0003977,2]
[393626880,1762864261760,-500.0,0.0003977,2]
[393626881,1762864261769,-500.0,0.0003977,2]
[393626882,1762864261779,-1000.0,0.0003977,2]
[393626883,1762864261788,-1000.0,0.0003977,2]
[393626884,1762864261799,-150.0,0.00039772,7]
[393626885,1762864261809,-300.0,0.00039778,2]
[393626886,1762864261818,-500.0,0.00039781,120]
[393626887,1762864261827,-500.0,0.00039781,120]
[393626888,1762864261837,-500.0,0.00039781,7]
[393626889,1762864261847,-1057.82245096,0.00039782,2]
[393626890,1762864261857,-335.41125028,0.00039782,8]
[393626891,1762864261866,-906.77770921,0.00039782,2]
[393626892,1762864261876,-619.59008654,0.00039782,2]
[393626893,1762864262000,-818.82966897,0.00039782,15]
[393626894,1762864262010,-5154.89989462,0.00039782,2]
[393626895,1762864262022,-254.22527129,0.00039782,2]
[393626896,1762864262032,-1000.0,0.00039786,7]
[393626897,1762864262042,-2000.0,0.00039788,120]
[393626898,1762864262053,-1000.0,0.00039791,7]
[393626899,1762864262063,-300.0,0.00039792,2]
[393626900,1762864262072,-300.0,0.00039793,2]
[393626901,1762864262082,-1000.0,0.00039794,7]
[393626902,1762864262092,-990.0,0.00039797,2]
[393626903,1762864262102,-573.03,0.00039798,30]
[393626904,1762864262111,-500.0,0.00039799,120]
[393626905,1762864262120,-81930.80185806,0.000398,120]
[393626906,1762864262129,-474.5059866,0.000398,120]
[393626907,1762864262139,-204.06,0.000398,23]
[393626908,1762864262148,-151.0,0.000398,120]
[393626909,1762864262157,-151.0,0.000398,120]
[393626910,1762864262166,-151.0,0.000398,120]
[393626911,1762864262175,-151.0,0.000398,120]
[393626912,1762864262185,-156.996904,0.000398,120]
[393626913,1762864262194,-151.0,0.000398,120]
[393626914,1762864262203,-151.0,0.000398,120]
[393626915,1762864262212,-151.0,0.000398,120]
[393626916,1762864262221,-154.870085,0.000398,120]
[393626917,1762864262231,-152.956912,0.000398,120]
[393626918,1762864262240,-208.928791,0.000398,2]
[393626919,1762864262249,-208.928791,0.000398,2]
[393626920,1762864262258,-208.928791,0.000398,2]
[393626921,1762864262267,-208.928791,0.000398,2]
[393626922,1762864262276,-151.0,0.000398,120]
[393626923,1762864262285,-151.0,0.000398,120]
[393626924,1762864262294,-447.0,0.000398,2]
[393626925,1762864262304,-2323.0,0.000398,14]
[393626926,1762864262316,-184.12,0.000398,41]
[393626927,1762864262325,-1000.0,0.00039804,7]
[393626928,1762864262335,-1795.0,0.00039811,2]
[393626929,1762864262344,-1000.0,0.00039819,7]
[393626930,1762864262354,-1000.0,0.00039827,7]
[393626931,1762864262364,-2656.96542013,0.00039833,2]
[393626932,1762864262373,-150.0,0.00039833,7]
[393626933,1762864262383,-191.42875082,0.00039834,7]
[393626934,1762864262397,-1000.0,0.00039835,7]
[393626935,1762864262406,-150.0,0.00039837,7]
[393626936,1762864262416,-300.0,0.00039838,2]
[393626937,1762864262426,-2690.08842945,0.00039848,2]
[393626938,1762864262436,-500.0,0.0003985,120]
[393626939,1762864262446,-500.0,0.0003985,120]
[393626940,1762864262457,-500.72,0.0003985,120]
[393626941,1762864262473,-500.0,0.0003985,120]
[393626942,1762864262482,-500.0,0.0003985,120]
[393626943,1762864262492,-500.0,0.0003985,7]
[393626944,1762864262501,-4422.0,0.00039851,2]
[393626945,1762864262511,-9004.58561138,0.00039851,2]
[393626946,1762864262521,-9004.58561138,0.00039851,2]
[393626947,1762864262530,-9004.58561138,0.00039851,2]
[393626948,1762864262539,-9004.58561138,0.00039851,2]
[393626949,1762864262550,-500.0,0.00039852,2]
[393626950,1762864262559,-724.49,0.00039857,120]
[393626951,1762864262568,-724.49,0.00039857,120]
[393626952,1762864262578,-724.49,0.00039857,120]
[393626953,1762864262588,-724.49,0.00039857,120]
[393626954,1762864262598,-724.49,0.00039857,120]
[393626955,1762864262607,-724.49,0.00039857,120]
[393626956,1762864262616,-724.49,0.00039857,120]
[393626957,1762864262625,-724.49,0.00039857,120]
[393626958,1762864262635,-724.49,0.00039857,120]
[393626959,1762864262644,-724.49,0.00039857,120]
[393626960,1762864262653,-724.49,0.00039857,120]
[393626961,1762864262662,-724.49,0.00039857,120]
[393626962,1762864262671,-724.49,0.00039857,120]
[393626963,1762864262680,-724.49,0.00039857,120]
[393626964,1762864262690,-724.49,0.00039857,120]
[393626965,1762864262700,-724.49,0.00039857,120]
[393626966,1762864262709,-724.49,0.00039857,120]
[393626967,1762864262719,-724.49,0.00039857,120]
[393626968,1762864262728,-724.584032,0.00039857,120]
[393626969,1762864262738,-151.0,0.00039857,120]
[393626970,1762864262748,-151.0,0.00039857,120]
[393626971,1762864262758,-153.346243,0.00039857,120]
[393626972,1762864262768,-151.0,0.00039857,120]
[393626973,1762864262779,-151.0,0.00039857,120]
[393626974,1762864262789,-151.0,0.00039857,120]
[393626975,1762864262801,-151.0,0.00039857,120]
[393626976,1762864262811,-151.0,0.00039857,30]
[393626977,1762864262820,-151.0,0.00039857,120]
[393626978,1762864262830,-153.424306,0.00039857,120]
[393626979,1762864262840,-151.0,0.00039857,120]
[393626980,1762864262850,-151.0,0.00039857,120]
[393626981,1762864262859,-655.675517,0.00039857,120]
[393626982,1762864262869,-151.0,0.00039857,120]
[393626983,1762864262879,-655.675517,0.00039857,120]
[393626984,1762864262889,-151.0,0.00039857,120]
[393626985,1762864262899,-151.0,0.00039857,120]
[393626986,1762864262908,-151.0,0.00039857,120]
[393626987,1762864262918,-655.675517,0.00039857,120]
[393626988,1762864262927,-655.675517,0.00039857,120]
[393626989,1762864262936,-151.0,0.00039857,30]
[393626990,1762864262946,-166.9717,0.00039857,120]
[393626991,1762864262955,-166.9717,0.00039857,120]
[393626992,1762864262964,-166.9717,0.00039857,120]
[393626993,1762864262973,-166.9717,0.00039857,120]
[393626994,1762864262982,-151.0,0.00039857,120]
[393626995,1762864262992,-179.785604,0.00039857,120]
[393626996,1762864263001,-151.0,0.00039857,120]
[393626997,1762864263010,-298.45860482,0.00039859,60]
[393626998,1762864263020,-500.0,0.00039859,60]
[393626999,1762864263030,-153.70882138,0.00039859,60]
[393627000,1762864263039,-500.0,0.00039859,60]
[393627001,1762864263052,-500.0,0.00039859,60]
[393627002,1762864263061,-500.0,0.00039859,60]
[393627003,1762864263071,-500.0,0.00039859,23]
[393627004,1762864263080,-234.91258694,0.0003986,30]
[393627005,1762864263090,-500.0,0.00039862,120]
[393627006,1762864263100,-500.0,0.00039862,2]
[393627007,1762864263111,-500.0,0.00039862,2]
[393627008,1762864263124,-500.0,0.00039862,2]
[393627009,1762864263133,-500.0,0.00039862,2]
[393627010,1762864263142,-298.98842692,0.00039862,2]
[393627011,1762864263152,-500.0,0.00039862,120]
[393627012,1762864263162,-500.0,0.00039862,120]
[393627013,1762864263171,-500.0,0.00039862,120]
[393627014,1762864263181,-500.0,0.00039862,120]
[393627015,1762864263190,-500.0,0.00039862,120]
[393627016,1762864263200,-500.0,0.00039862,120]
[393627017,1762864263210,-500.0,0.00039862,120]
[393627018,1762864263221,-500.0,0.00039862,120]
[393627019,1762864263231,-165.49028942,0.00039862,120]
[393627020,1762864263240,-150.0,0.00039862,2]
[393627021,1762864263250,-854.50952725,0.00039862,2]
[393627022,1762864263260,-150.0,0.00039862,2]
[393627023,1762864263270,-42274.2204564,0.00039862,2]
[393627024,1762864263279,-150.0,0.00039862,2]
[393627025,1762864263289,-1422.77853606,0.00039862,2]
[393627026,1762864263303,-300.0,0.00039862,2]
[393627027,1762864263314,-300.0,0.00039862,2]
[393627028,1762864263324,-300.0,0.00039862,2]
[393627029,1762864263334,-300.0,0.00039862,2]
[393627030,1762864263343,-351.94282591,0.00039862,2]
[393627031,1762864263354,-500.0,0.00039863,7]
[393627032,1762864263364,-459.02,0.00039863,7]
[393627033,1762864263375,-500.0,0.00039863,7]
[393627034,1762864263386,-500.0,0.00039863,7]
[393627035,1762864263397,-500.0,0.0003987,2]
[393627036,1762864263408,-500.0,0.0003987,2]
[393627037,1762864263418,-1000.0,0.0003987,2]
[393627038,1762864263428,-1000.0,0.0003987,2]
[393627039,1762864263437,-150.0,0.00039872,7]
[393627040,1762864263447,-150.0,0.00039872,7]
[393627041,1762864263456,-500.0,0.00039872,7]
[393627042,1762864263466,-500.0,0.00039872,2]
[393627043,1762864263476,-500.0,0.00039872,7]
[393627044,1762864263486,-500.0,0.00039872,2]
[393627045,1762864263495,-500.0,0.00039872,7]
[393627046,1762864263504,-6339.76199395,0.00039876,120]
[393627047,1762864263513,-151.0,0.00039879,14]
[393627048,1762864263523,-151.0,0.00039879,14]
[393627049,1762864263533,-517.31808734,0.00039881,120]
[393627050,1762864263542,-500.0,0.00039881,7]
[393627051,1762864263553,-500.0,0.00039881,7]
[393627052,1762864263563,-605.70425089,0.00039881,7]
[393627053,1762864263573,-300.0,0.00039881,10]
[393627054,1762864263582,-307.54098138,0.00039881,10]
[393627055,1762864263593,-726.66686908,0.00039882,2]
[393627056,1762864263609,-726.66686908,0.00039882,2]
[393627057,1762864263619,-173.500848,0.00039882,120]
[393627058,1762864263629,-151.0,0.00039882,90]
[393627059,1762864263639,-151.0,0.00039882,90]
[393627060,1762864263648,-151.0,0.00039882,120]
[393627061,1762864263659,-165.22064,0.00039882,120]
[393627062,1762864263668,-151.0,0.00039882,120]
[393627063,1762864263677,-151.0,0.00039882,120]
[393627064,1762864263686,-153.719565,0.00039882,120]
[393627065,1762864263695,-151.0,0.00039882,120]
[393627066,1762864263705,-151.0,0.00039882,120]
[393627067,1762864263714,-151.0,0.00039882,120]
[393627068,1762864263723,-151.0,0.00039882,120]
[393627069,1762864263732,-151.0,0.00039882,120]
[393627070,1762864263742,-151.0,0.00039882,120]
[393627071,1762864263751,-151.0,0.00039882,120]
[393627072,1762864263760,-249.919254,0.00039882,120]
[393627073,1762864263770,-151.0,0.00039882,120]
[393627074,1762864263780,-151.0,0.00039882,120]
[393627075,1762864263789,-151.0,0.00039882,120]
[393627076,1762864263798,-151.0,0.00039882,120]
[393627077,1762864263808,-151.0,0.00039882,120]
[393627078,1762864263817,-151.0,0.00039882,120]
[393627079,1762864263826,-155.669049,0.00039882,120]
[393627080,1762864263836,-151.0,0.00039882,120]
[393627081,1762864263845,-151.0,0.00039882,120]
[393627082,1762864263854,-296.039985,0.00039882,120]
[393627083,1762864263863,-151.0,0.00039882,120]
[393627084,1762864263872,-151.0,0.00039882,120]
[393627085,1762864263881,-151.0,0.00039882,120]
[393627086,1762864263890,-151.0,0.00039882,120]
[393627087,1762864263899,-153.470548,0.00039882,120]
[393627088,1762864263908,-151.0,0.00039882,120]
[393627089,1762864263918,-151.0,0.00039882,120]
[393627090,1762864263927,-151.0,0.00039882,120]
[393627091,1762864263936,-151.0,0.00039882,120]
[393627092,1762864263946,-238.651078,0.00039882,120]
[393627093,1762864263956,-151.0,0.00039882,120]
[393627094,1762864263965,-152.698772,0.00039882,120]
[393627095,1762864263974,-208.928791,0.00039882,2]
[393627096,1762864263984,-208.928791,0.00039882,2]
[393627097,1762864263993,-208.928791,0.00039882,2]
[393627098,1762864264003,-208.928791,0.00039882,2]
[393627099,1762864264012,-208.928791,0.00039882,2]
[393627100,1762864264026,-208.928791,0.00039882,2]
[393627101,1762864264036,-208.928791,0.00039882,2]
[393627102,1762864264048,-208.928791,0.00039882,2]
[393627103,1762864264058,-208.928791,0.00039882,2]
[393627104,1762864264068,-208.928791,0.00039882,2]
[393627105,1762864264078,-208.928791,0.00039882,2]
[393627106,1762864264087,-208.928791,0.00039882,2]
[393627107,1762864264096,-208.928791,0.00039882,2]
[393627108,1762864264105,-208.928791,0.00039882,2]
[393627109,1762864264114,-208.928791,0.00039882,2]
[393627110,1762864264124,-208.928792,0.00039882,2]
[393627111,1762864264134,-151.0,0.00039882,120]
[393627112,1762864264144,-151.0,0.00039882,120]
[393627113,1762864264153,-151.0,0.00039882,120]
[393627114,1762864264162,-151.0,0.00039882,120]
[393627115,1762864264172,-151.0,0.00039882,120]
[393627116,1762864264182,-151.0,0.00039882,120]
[393627117,1762864264191,-152.824271,0.00039882,120]
[393627118,1762864264200,-151.0,0.00039882,120]
[393627119,1762864264209,-151.0,0.00039882,120]
[393627120,1762864264219,-151.0,0.00039882,120]
[393627121,1762864264228,-229.219419,0.00039882,120]
[393627122,1762864264237,-285.91276,0.00039882,120]
[393627123,1762864264246,-151.0,0.00039882,120]
[393627124,1762864264255,-151.0,0.00039882,120]
[393627125,1762864264264,-151.0,0.00039882,120]
[393627126,1762864264274,-151.0,0.00039882,120]
[393627127,1762864264283,-279.284647,0.00039882,120]
[393627128,1762864264292,-151.0,0.00039882,120]
[393627129,1762864264407,-151.0,0.00039882,120]
[393627130,1762864264416,-151.0,0.00039882,120]
[393627131,1762864264425,-206.079187,0.00039882,120]
[393627132,1762864264435,-162.998621,0.00039882,120]
[393627133,1762864264444,-151.0,0.00039882,120]
[393627134,1762864264453,-151.0,0.00039882,120]
[393627135,1762864264462,-151.0,0.00039882,120]
[393627136,1762864264471,-151.0,0.00039882,120]
[393627137,1762864264480,-151.0,0.00039882,120]
[393627138,1762864264489,-151.0,0.00039882,120]
[393627139,1762864264498,-151.0,0.00039882,120]
[393627140,1762864264507,-151.0,0.00039882,120]
[393627141,1762864264516,-162.368071,0.00039882,120]
[393627142,1762864264526,-151.0,0.00039882,120]
[393627143,1762864264535,-151.0,0.00039882,120]
[393627144,1762864264546,-157.842751,0.00039882,120]
[393627145,1762864264556,-151.0,0.00039882,120]
[393627146,1762864264565,-151.0,0.00039882,120]
[393627147,1762864264575,-153.208999,0.00039882,120]
[393627148,1762864264585,-151.0,0.00039882,120]
[393627149,1762864264595,-151.0,0.00039882,120]
[393627150,1762864264605,-151.0,0.00039882,120]
[393627151,1762864264614,-151.0,0.00039882,120]
[393627152,1762864264623,-151.0,0.00039882,120]
[393627153,1762864264633,-151.0,0.00039882,120]
[393627154,1762864264645,-151.0,0.00039882,120]
[393627155,1762864264661,-151.0,0.00039882,120]
[393627156,1762864264671,-151.0,0.00039882,120]
[393627157,1762864264681,-151.0,0.00039882,120]
[393627158,1762864264690,-151.0,0.00039882,120]
[393627159,1762864264699,-158.47328,0.00039882,120]
[393627160,1762864264709,-156.139867,0.00039882,120]
[393627161,1762864264719,-151.0,0.00039882,120]
[393627162,1762864264728,-151.0,0.00039882,120]
[393627163,1762864264738,-245.775424,0.00039882,120]
[393627164,1762864264747,-156.350601,0.00039882,30]
[393627165,1762864264757,-151.0,0.00039882,120]
[393627166,1762864264766,-151.0,0.00039882,120]
[393627167,1762864264776,-151.0,0.00039882,120]
[393627168,1762864264785,-151.0,0.00039882,120]
[393627169,1762864264795,-151.0,0.00039882,120]
[393627170,1762864264805,-151.0,0.00039882,120]
[393627171,1762864264814,-166.501391,0.00039882,120]
[393627172,1762864264825,-151.0,0.00039882,120]
[393627173,1762864264834,-151.0,0.00039882,120]
[393627174,1762864264843,-240.414561,0.00039882,120]
[393627175,1762864264852,-151.0,0.00039882,14]
[393627176,1762864264862,-151.0,0.00039882,14]
[393627177,1762864264871,-151.0,0.00039882,14]
[393627178,1762864264882,-151.0,0.00039882,14]
[393627179,1762864264891,-151.0,0.00039882,14]
[393627180,1762864264902,-151.0,0.00039882,14]
[393627181,1762864264911,-151.0,0.00039882,120]
[393627182,1762864264921,-151.0,0.00039882,14]
[393627183,1762864264931,-151.0,0.00039882,14]
[393627184,1762864264941,-151.0,0.00039882,120]
[393627185,1762864264951,-151.0,0.00039882,120]
[393627186,1762864264960,-219.969981,0.00039882,120]
[393627187,1762864264970,-170.165682,0.00039882,120]
[393627188,1762864264980,-153.123438,0.00039882,120]
[393627189,1762864264995,-151.0,0.00039882,120]
[393627190,1762864265005,-151.0,0.00039882,120]
[393627191,1762864265014,-151.0,0.00039882,120]
[393627192,1762864265024,-151.0,0.00039882,120]
[393627193,1762864265033,-151.0,0.00039882,120]
[393627194,1762864265043,-151.0,0.00039882,120]
[393627195,1762864265055,-230.64018831,0.00039882,120]
[393627196,1762864265064,-266.888997,0.00039882,120]
[393627197,1762864265074,-151.0,0.00039882,120]
[393627198,1762864265083,-151.0,0.00039882,120]
[393627199,1762864265093,-151.0,0.00039882,120]
[393627200,1762864265103,-151.0,0.00039882,120]
[393627201,1762864265113,-205.930075,0.00039882,21]
[393627202,1762864265123,-205.930075,0.00039882,21]
[393627203,1762864265132,-151.0,0.00039882,120]
[393627204,1762864265142,-205.930075,0.00039882,21]
[393627205,1762864265152,-151.0,0.00039882,120]
[393627206,1762864265161,-205.930075,0.00039882,21]
[393627207,1762864265171,-151.0,0.00039882,120]
[393627208,1762864265180,-205.930075,0.00039882,21]
[393627209,1762864265190,-181.584598,0.00039882,120]
[393627210,1762864265199,-205.930075,0.00039882,21]
[393627211,1762864265209,-205.930075,0.00039882,21]
[393627212,1762864265218,-205.930075,0.00039882,21]
[393627213,1762864265228,-205.930075,0.00039882,21]
[393627214,1762864265237,-205.930075,0.00039882,21]
[393627215,1762864265247,-205.930075,0.00039882,21]
[393627216,1762864265256,-205.930075,0.00039882,21]
[393627217,1762864265266,-205.930075,0.00039882,21]
[393627218,1762864265275,-205.930075,0.00039882,21]
[393627219,1762864265285,-205.930075,0.00039882,21]
[393627220,1762864265294,-205.930079,0.00039882,21]
[393627221,1762864265307,-151.0,0.00039882,120]
[393627222,1762864265319,-151.0,0.00039882,120]
[393627223,1762864265328,-285.150355,0.00039882,120]
[393627224,1762864265337,-151.0,0.00039882,120]
[393627225,1762864265346,-151.0,0.00039882,120]
[393627226,1762864265356,-151.0,0.00039882,120]
[393627227,1762864265366,-151.0,0.00039882,120]
[393627228,1762864265376,-153.601214,0.00039882,60]
[393627229,1762864265389,-151.616994,0.00039882,120]
[393627230,1762864265398,-164.4422,0.00039882,120]
[393627231,1762864265408,-151.0,0.00039882,120]
[393627232,1762864265417,-153.008677,0.00039882,120]
[393627233,1762864265426,-151.0,0.00039882,120]
[393627234,1762864265435,-151.0,0.00039882,120]
[393627235,1762864265446,-151.0,0.00039882,120]
[393627236,1762864265455,-151.0,0.00039882,120]
[393627237,1762864265464,-164.322279,0.00039882,120]
[393627238,1762864265474,-151.0,0.00039882,120]
[393627239,1762864265483,-151.0,0.00039882,120]
[393627240,1762864265492,-151.0,0.00039882,120]
[393627241,1762864265501,-151.0,0.00039882,120]
[393627242,1762864265510,-151.0,0.00039882,120]
[393627243,1762864265519,-151.0,0.00039882,120]
[393627244,1762864265528,-151.0,0.00039882,120]
[393627245,1762864265537,-151.0,0.00039882,120]
[393627246,1762864265548,-151.0,0.00039882,120]
[393627247,1762864265557,-151.0,0.00039882,120]
[393627248,1762864265566,-151.0,0.00039882,120]
[393627249,1762864265575,-177.07649,0.00039882,120]
[393627250,1762864265585,-151.0,0.00039882,120]
[393627251,1762864265594,-153.801165,0.00039882,120]
[393627252,1762864265604,-151.0,0.00039882,120]
[393627253,1762864265613,-151.0,0.00039882,120]
[393627254,1762864265622,-151.0,0.00039882,120]
[393627255,1762864265631,-151.0,0.00039882,120]
[393627256,1762864265640,-151.0,0.00039882,120]
[393627257,1762864265650,-153.202601,0.00039882,120]
[393627258,1762864265660,-151.0,0.00039882,120]
[393627259,1762864265669,-151.0,0.00039882,120]
[393627260,1762864265678,-151.0,0.00039882,120]
[393627261,1762864265688,-166.596624,0.00039882,120]
[393627262,1762864265698,-157.361959,0.00039882,120]
[393627263,1762864265707,-151.0,0.00039882,120]
[393627264,1762864265717,-151.0,0.00039882,120]
[393627265,1762864265726,-151.0,0.00039882,120]
[393627266,1762864265736,-257.799915,0.00039882,120]
[393627267,1762864265745,-165.664254,0.00039882,120]
[393627268,1762864265756,-151.0,0.00039882,120]
[393627269,1762864265765,-153.636176,0.00039882,120]
[393627270,1762864265775,-151.0,0.00039882,120]
[393627271,1762864265784,-151.0,0.00039882,120]
[393627272,1762864265793,-151.0,0.00039882,120]
[393627273,1762864265803,-151.0,0.00039882,120]
[393627274,1762864265812,-196.232164,0.00039882,120]
[393627275,1762864265821,-151.0,0.00039882,120]
[393627276,1762864265830,-151.0,0.00039882,120]
[393627277,1762864265839,-151.0,0.00039882,120]
[393627278,1762864265850,-151.0,0.00039882,120]
[393627279,1762864265859,-152.333962,0.00039882,120]
[393627280,1762864265869,-288.458231,0.00039882,120]
[393627281,1762864265878,-151.0,0.00039882,120]
[393627282,1762864265890,-178.925692,0.00039882,120]
[393627283,1762864265899,-151.0,0.00039882,120]
[393627284,1762864265908,-153.658686,0.00039882,120]
[393627285,1762864265916,-151.0,0.00039882,120]
[393627286,1762864265926,-152.034756,0.00039882,120]
[393627287,1762864265935,-151.0,0.00039882,120]
[393627288,1762864265944,-151.0,0.00039882,120]
[393627289,1762864265953,-301.390707,0.00039882,120]
[393627290,1762864265962,-154.330619,0.00039882,120]
[393627291,1762864265971,-151.89687,0.00039882,30]
[393627292,1762864265981,-151.0,0.00039882,120]
[393627293,1762864265990,-151.0,0.00039882,120]
[393627294,1762864265999,-151.0,0.00039882,120]
[393627295,1762864266009,-151.0,0.00039882,120]
[393627296,1762864266019,-151.0,0.00039882,120]
[393627297,1762864266028,-151.0,0.00039882,120]
[393627298,1762864266038,-202.658246,0.00039882,120]
[393627299,1762864266049,-151.0,0.00039882,120]
[393627300,1762864266058,-151.0,0.00039882,120]
[393627301,1762864266067,-151.0,0.00039882,120]
[393627302,1762864266076,-151.0,0.00039882,120]
[393627303,1762864266085,-172.266868,0.00039882,120]
[393627304,1762864266095,-151.0,0.00039882,120]
[393627305,1762864266103,-151.0,0.00039882,120]
[393627306,1762864266113,-151.0,0.00039882,120]
[393627307,1762864266122,-151.0,0.00039882,120]
[393627308,1762864266131,-151.0,0.00039882,120]
[393627309,1762864266140,-248.368719,0.00039882,120]
[393627310,1762864266149,-151.0,0.00039882,120]
[393627311,1762864266159,-151.0,0.00039882,120]
[393627312,1762864266169,-151.0,0.00039882,120]
[393627313,1762864266178,-151.0,0.00039882,120]
[393627314,1762864266188,-151.0,0.00039882,120]
[393627315,1762864266198,-151.0,0.00039882,120]
[393627316,1762864266207,-151.0,0.00039882,120]
[393627317,1762864266216,-151.0,0.00039882,120]
[393627318,1762864266226,-151.0,0.00039882,120]
[393627319,1762864266235,-151.0,0.00039882,120]
[393627320,1762864266245,-151.0,0.00039882,120]
[393627321,1762864266255,-151.0,0.00039882,120]
[393627322,1762864266264,-151.0,0.00039882,120]
[393627323,1762864266273,-151.0,0.00039882,120]
[393627324,1762864266283,-151.0,0.00039882,120]
[393627325,1762864266292,-151.0,0.00039882,120]
[393627326,1762864266303,-151.0,0.00039882,120]
[393627327,1762864266313,-236.575348,0.00039882,120]